bitfinex/quotes_ETHUSD_20250222
["timestamp","ask_amount","ask_price","bid_price","bid_amount"]
[1740229970298,2.25981089,2740.5,2739.9,7.29943]
[1740229970602,2.25981089,2740.5,2740.0,0.10535203]
[1740229971583,3.64924,2740.3,2740.0,0.10535203]
[1740229971789,3.6495,2740.1,2740.0,0.10535203]
[1740229971965,3.6495,2740.1,2739.5,4.41627]
[1740229972153,3.6495,2740.1,2739.6,0.10541807]
[1740229972495,3.64962,2740.1,2739.6,0.10541807]
[1740229973247,0.8159,2740.0,2739.6,0.10541807]
[1740229973454,3.6499,2739.8,2739.3,0.7661]
[1740229973660,3.6499,2739.8,2739.4,0.10545109]
[1740229975351,3.65012,2739.7,2739.1,6.1792664]
[1740229975573,3.65012,2739.7,2739.2,0.10548412]
[1740229976393,3.65012,2739.7,2739.2,3.75618412]
[1740229976853,4.4656,2740.0,2739.2,3.75618412]
[1740229977054,0.8495832,2739.9,2739.2,3.75618412]
[1740229977587,3.8159,2740.0,2739.4,3.65042]
[1740229977768,3.8159,2740.0,2739.6,3.65008]
[1740229978183,3.8159,2740.0,2739.7,0.10540155]
[1740229979121,3.8159,2740.0,2739.5,7.30051]
[1740229979310,3.8159,2740.0,2739.6,0.10541807]
[1740229979609,3.64978,2739.9,2739.3,4.41658]
[1740229979781,3.64978,2739.9,2739.7,0.10540155]
[1740229979986,3.64978,2739.9,2739.4,3.65042]
[1740229980189,3.64978,2739.9,2739.5,0.10543458]
[1740229980631,4.6005132,2740.0,2739.5,0.10543458]
[1740229980835,4.6005132,2740.0,2739.5,3.75571458]
[1740229981632,0.8159,2740.0,2739.5,0.10543458]
[1740229981834,4.46513,2740.3,2739.7,0.7661]
[1740229982343,3.8159,2740.3,2739.8,7.40629192]
[1740229982634,3.8159,2740.3,2739.8,3.75640192]
[1740229984232,0.817,2740.5,2740.2,3.64927]
[1740229984535,3.817,2740.8,2740.3,3.75529682]
[1740229984731,3.817,2740.8,2740.3,0.10606682]
[1740229984909,3.817,2740.8,2740.2,3.64936]
[1740229985114,0.817,2740.8,2740.4,3.75507032]
[1740229985316,1.6441,2740.8,2740.3,0.10606682]
[1740229985624,1.6441,2740.8,2740.2,3.64929]
[1740229985823,1.6441,2740.8,2740.4,0.10605032]
[1740229986024,1.6441,2740.8,2740.3,3.75527682]
[1740229986231,1.6441,2740.8,2740.5,0.10603382]
[1740229986431,1.6441,2740.8,2740.4,0.10605032]
[1740229986639,1.6441,2740.8,2740.6,0.10601732]
[1740229986851,1.6441,2740.8,2740.5,0.10603382]
[1740229987047,1.6441,2740.8,2740.7,0.10600082]
[1740229987270,1.6441,2740.8,2740.6,0.10601732]
[1740229987428,1.6441,2740.8,2740.7,0.10600082]
[1740229987833,1.6441,2740.8,2740.4,3.64906]
[1740229988034,1.6441,2740.8,2740.7,0.10600082]
[1740229988233,1.6441,2740.8,2740.4,3.64906]
[1740229988536,3.0,2740.9,2740.6,3.64882]
[1740229988734,3.0,2740.9,2740.7,0.10600082]
[1740229988946,7.454,2741.0,2740.5,4.46375]
[1740229989153,7.454,2741.0,2740.6,0.10601732]
[1740229990954,7.454,2741.0,2740.6,3.75476732]
[1740229992676,7.454,2741.0,2740.7,3.64869]
[1740229993196,7.454,2741.0,2740.8,0.10518982]
[1740229993468,7.454,2741.0,2740.6,3.64875]
[1740229993773,7.454,2741.0,2740.6,3.64874]
[1740229993974,7.454,2741.0,2740.7,3.64869]
[1740229994272,7.454,2741.0,2740.8,0.1047474]
[1740229994796,7.454,2741.0,2740.9,0.1047309]
[1740229995133,7.454,2741.0,2740.7,3.64869]
[1740229995574,7.454,2741.0,2740.8,0.1047474]
[1740229995778,7.454,2741.0,2740.7,3.64869]
[1740229995964,7.454,2741.0,2740.8,0.1047474]
[1740229996162,7.454,2741.0,2740.7,3.64869]
[1740229996371,7.454,2741.0,2740.8,0.1047474]
[1740229996679,7.454,2741.0,2740.7,3.64869]
[1740229996898,7.454,2741.0,2740.9,0.1047309]
[1740229997470,7.454,2741.0,2740.9,0.9195309]
[1740229998878,4.25333887,2741.3,2740.9,0.9195309]
[1740229999078,5.39844976,2741.3,2740.9,0.9195309]
[1740230000706,5.39844976,2741.3,2740.9,0.8148]
[1740230001011,5.39844976,2741.3,2741.0,0.10471441]
[1740230001892,5.39844976,2741.3,2740.9,0.8148]
[1740230002103,5.39844976,2741.3,2741.0,0.10471441]
[1740230003877,5.39844976,2741.3,2740.9,0.8148]
[1740230004084,3.42353887,2741.0,2740.6,0.7564]
[1740230004283,7.07192887,2741.0,2740.4,4.40546]
[1740230004479,7.07192887,2741.0,2740.7,0.10444219]
[1740230004794,10.72031887,2741.0,2740.8,0.10442569]
[1740230005113,7.07167887,2741.2,2740.6,3.64875]
[1740230005315,0.79014789,2741.1,2740.5,3.64887]
[1740230005518,0.79014789,2741.1,2740.9,0.73778699]
[1740230006030,4.43831789,2741.1,2741.0,0.10439269]
[1740230006430,5.26741789,2741.1,2741.0,0.10439269]
[1740230006813,3.64838,2741.0,2740.4,0.7564]
[1740230008206,3.64838,2741.0,2740.4,4.40549]
[1740230008731,3.64838,2741.0,2740.4,0.7564]
[1740230008902,3.64838,2741.0,2740.4,4.4055]
[1740230009947,5.26741789,2741.1,2740.4,0.7564]
[1740230010244,3.64844,2740.9,2740.4,0.7564]
[1740230010453,3.64844,2740.9,2740.4,4.40549]
[1740230010953,5.26741789,2741.1,2740.4,4.40537]
[1740230011507,3.64837,2741.0,2740.4,4.40537]
[1740230011707,3.64837,2741.0,2740.4,8.05438]
[1740230011904,3.64837,2741.0,2740.5,0.10447519]
[1740230012357,3.64844,2740.9,2740.5,0.10447519]
[1740230013758,3.64831,2741.0,2740.5,3.75343519]
[1740230014750,4.47727,2741.1,2740.5,7.40230519]
[1740230015054,4.47727,2741.1,2740.5,3.75334519]
[1740230015549,8.12553,2741.1,2740.5,3.75334519]
[1740230016048,4.47727,2741.1,2740.5,3.75334519]
[1740230016565,3.64817,2741.1,2740.6,3.64883]
[1740230016759,3.64817,2741.1,2740.7,0.10444219]
[1740230017337,3.64817,2741.1,2740.5,3.64894]
[1740230017540,3.64817,2741.1,2740.6,0.10445868]
[1740230017921,3.64817,2741.1,2740.6,3.64883]
[1740230018149,3.64817,2741.1,2740.7,0.10473372]
[1740230018833,4.43597,2741.3,2740.8,4.45516]
[1740230019220,4.43597,2741.3,2740.9,0.10470073]
[1740230019454,5.88668589,2741.3,2740.9,0.10470073]
[1740230020220,2.23871589,2741.3,2740.9,0.10470073]
[1740230020452,3.64825,2741.1,2740.9,0.10470073]
[1740230020762,3.64825,2741.1,2740.8,0.8066]
[1740230021558,5.88668589,2741.3,2740.8,0.8066]
[1740230021721,9.53469589,2741.3,2740.8,0.8066]
[1740230021921,9.53469589,2741.3,2740.9,0.10482137]
[1740230022121,9.53469589,2741.3,2740.8,0.8066]
[1740230022322,9.53467589,2741.3,2740.9,0.10482137]
[1740230022550,5.88668589,2741.3,2740.8,0.8066]
[1740230022752,3.64805,2741.2,2740.9,0.10482137]
[1740230023300,0.95347359,2741.2,2740.9,0.10482137]
[1740230023441,3.64818,2741.1,2740.9,0.10482137]
[1740230023867,0.95347359,2741.2,2740.9,0.10482137]
[1740230024073,3.64803,2741.2,2740.9,0.10482137]
[1740230024235,4.43597,2741.3,2740.9,0.10482137]
[1740230024436,3.64804,2741.2,2740.9,0.10482137]
[1740230024644,3.64817,2741.1,2740.9,0.10482137]
[1740230027273,7.29645,2741.1,2740.9,0.10482137]
[1740230027460,3.6483,2741.0,2740.9,0.10482137]
[1740230027861,3.64844,2740.9,2740.5,0.7698]
[1740230028264,3.64844,2740.9,2740.6,0.10492115]
[1740230033755,7.29698,2740.9,2740.6,0.10492115]
[1740230034046,3.64844,2740.9,2740.6,0.10492115]
[1740230034453,7.29698,2740.9,2740.6,0.10492115]
[1740230034647,7.29696,2740.9,2740.6,0.10492115]
[1740230034854,3.64844,2740.9,2740.6,0.10492115]
[1740230036559,3.64858,2740.8,2740.6,0.10492115]
[1740230036709,3.64844,2740.9,2740.6,0.10492115]
[1740230037105,7.29696,2740.9,2740.6,0.10492115]
[1740230038604,5.31331037,2740.9,2740.6,0.10492115]
[1740230039243,8.96183037,2740.9,2740.6,0.10492115]
[1740230039615,5.31331037,2740.9,2740.6,0.10492115]
[1740230040040,8.96184037,2740.9,2740.6,0.10492115]
[1740230040235,5.31331037,2740.9,2740.6,0.10492115]
[1740230040548,5.31357037,2740.7,2740.6,0.10492115]
[1740230040724,5.31357037,2740.7,2740.2,0.7698]
[1740230040918,3.6489,2740.6,2740.2,0.7698]
[1740230041123,3.6489,2740.6,2740.3,0.10491032]
[1740230041307,3.6489,2740.6,2740.2,0.7698]
[1740230041842,1.66487037,2740.7,2740.3,0.10491032]
[1740230042043,1.66487037,2740.7,2740.2,4.41909]
[1740230042247,3.64857,2740.8,2740.4,0.10489382]
[1740230042408,3.64857,2740.8,2740.3,0.10491032]
[1740230042609,3.64857,2740.8,2740.3,0.11688996]
[1740230042816,3.64857,2740.8,2740.4,0.10489382]
[1740230043447,1.66487037,2740.9,2740.4,0.10489382]
[1740230043748,5.31331037,2740.9,2740.4,0.10489382]
[1740230044325,5.31331037,2740.9,2740.2,8.06833]
[1740230044525,5.31331037,2740.9,2740.3,3.75415037]
[1740230044729,1.66487037,2740.9,2740.3,3.75415037]
[1740230045873,1.66487037,2741.0,2740.7,0.795]
[1740230046250,4.66487037,2741.2,2740.8,0.10483787]
[1740230046416,1.66487037,2741.0,2740.7,0.795]
[1740230046748,1.66487037,2741.0,2740.8,0.10483787]
[1740230046944,1.66487037,2741.0,2740.7,0.795]
[1740230047148,1.66487037,2741.0,2740.8,0.10483787]
[1740230047450,1.66487037,2741.0,2740.7,0.795]
[1740230047652,1.66487037,2741.0,2740.9,0.10482137]
[1740230047819,1.66487037,2741.0,2740.7,0.795]
[1740230048019,1.66487037,2741.0,2740.9,0.10482137]
[1740230048218,1.66487037,2741.0,2740.7,0.795]
[1740230048419,1.66487037,2741.0,2740.9,0.10482137]
[1740230048653,1.66487037,2741.0,2740.7,0.795]
[1740230048851,1.66487037,2741.0,2740.9,0.10482137]
[1740230049151,1.66487037,2741.2,2740.9,0.10482137]
[1740230049357,1.66487037,2741.2,2740.7,4.44361]
[1740230049656,1.66487037,2741.2,2741.0,0.10480488]
[1740230049862,2.93824741,2741.2,2740.7,4.44361]
[1740230050040,2.93824741,2741.2,2741.1,0.10478838]
[1740230050227,2.93824741,2741.2,2740.7,4.44361]
[1740230050426,1.66487037,2741.2,2741.1,0.10478838]
[1740230050640,5.31291037,2741.2,2740.7,0.795]
[1740230050836,8.31291037,2741.2,2741.1,0.10478838]
[1740230051027,8.31291037,2741.2,2740.7,0.795]
[1740230051228,8.31291037,2741.2,2741.1,0.1045672]
[1740230051439,9.58629241,2741.2,2740.7,0.795]
[1740230051642,9.58629241,2741.2,2741.1,0.1045672]
[1740230051859,9.58629241,2741.2,2740.7,0.795]
[1740230052062,9.58629241,2741.2,2741.1,0.1045672]
[1740230052269,9.58629241,2741.2,2740.7,0.795]
[1740230052565,1.66487037,2741.0,2740.7,0.795]
[1740230052958,0.773,2740.9,2740.4,5.32]
[1740230053158,1.66487037,2740.8,2740.4,6.0906]
[1740230053751,5.31353037,2740.8,2740.4,5.32]
[1740230053952,3.64872,2740.7,2740.4,5.32]
[1740230054160,1.66487037,2740.6,2740.4,5.32]
[1740230054465,1.66487037,2740.6,2740.2,0.7706]
[1740230056635,5.31372037,2740.6,2740.2,0.7706]
[1740230057134,1.66487037,2740.6,2740.3,0.10459865]
[1740230057566,1.66487037,2740.6,2740.2,0.7706]
[1740230057767,1.66487037,2740.6,2740.4,0.10458215]
[1740230057971,1.66487037,2740.6,2740.2,0.7706]
[1740230058171,5.31381037,2740.6,2740.5,0.10456565]
[1740230058468,1.66487037,2740.6,2740.2,0.7706]
[1740230058637,1.66487037,2740.6,2740.5,0.10456565]
[1740230058837,1.66487037,2740.6,2740.2,0.7706]
[1740230059068,5.31370037,2740.6,2740.5,0.10456565]
[1740230059262,5.31370037,2740.6,2740.2,0.7706]
[1740230059938,5.31370037,2740.6,2740.3,0.10459865]
[1740230060144,5.31370037,2740.6,2740.2,0.7706]
[1740230060469,5.31370037,2740.6,2740.3,0.10459865]
[1740230060837,5.31370037,2740.6,2740.2,0.7706]
[1740230061050,1.66487037,2740.6,2740.4,0.10458215]
[1740230061255,5.31372037,2740.6,2740.2,0.7706]
[1740230061454,5.31372037,2740.6,2740.5,0.10499797]
[1740230061639,5.31372037,2740.6,2740.2,0.7706]
[1740230061839,5.31372037,2740.6,2740.5,0.10499797]
[1740230062040,5.31372037,2740.6,2740.2,0.7706]
[1740230062241,5.31372037,2740.6,2740.5,0.10499797]
[1740230062464,5.31372037,2740.6,2740.2,0.7706]
[1740230062670,5.31372037,2740.6,2740.5,0.10499797]
[1740230062874,5.31372037,2740.6,2740.2,0.7706]
[1740230063077,5.31372037,2740.6,2740.5,0.10499797]
[1740230063245,1.66487037,2740.6,2740.1,0.11686052]
[1740230063574,3.64897,2740.5,2740.1,0.11686052]
[1740230064377,3.64897,2740.5,2740.4,0.7205185]
[1740230067571,2.48197037,2740.6,2740.4,0.7205185]
[1740230067960,6.13082037,2740.6,2740.4,0.7205185]
[1740230068159,2.48197037,2740.6,2740.4,0.7205185]
[1740230068472,1.66487037,2740.6,2740.4,0.7205185]
[1740230069683,3.64872,2740.7,2740.4,0.7205185]
[1740230072051,3.64872,2740.7,2740.5,0.10478683]
[1740230073388,2.44737037,2740.6,2740.5,0.10478683]
[1740230075210,2.44737037,2740.6,2740.1,4.4825]
[1740230075499,2.44737037,2740.6,2740.5,0.10478683]
[1740230075704,2.44737037,2740.6,2740.1,0.833]
[1740230075934,5.40581904,2740.6,2740.5,0.10478683]
[1740230076071,3.6491,2740.4,2739.8,4.42722]
[1740230077399,1.66487037,2740.2,2739.8,4.42722]
[1740230079595,1.66487037,2740.2,2739.5,0.264]
[1740230079596,3.65006,2739.7,2739.5,0.7774]
[1740230079792,3.65006,2739.7,2739.3,3.65052]
[1740230079793,1.66487037,2739.7,2739.3,3.65052]
[1740230079985,1.66487037,2739.7,2739.2,4.428]
[1740230080299,1.66487037,2739.7,2739.2,8.0786]
[1740230080507,1.66487037,2739.7,2739.3,0.81717664]
[1740230081202,1.66487037,2739.7,2739.2,4.428]
[1740230081403,2.43327037,2739.7,2739.2,4.428]
[1740230081597,6.08333037,2739.7,2739.2,4.428]
[1740230081974,2.43327037,2739.7,2739.3,3.65055]
[1740230082181,2.43327037,2739.7,2739.2,8.0786]
[1740230082382,2.43327037,2739.7,2739.2,5.24517664]
[1740230082606,2.43327037,2739.7,2739.2,8.89577664]
[1740230082911,1.66487037,2740.1,2739.3,0.7902]
[1740230083479,1.66487037,2740.1,2739.6,3.65014]
[1740230083793,1.66487037,2740.1,2740.0,3.64963]
[1740230083992,5.32,2740.3,2740.0,3.64963]
[1740230083993,1.66487037,2740.3,2740.0,3.64954]
[1740230084410,1.66487037,2740.3,2740.0,4.17427252]
[1740230084609,0.7811,2740.4,2740.0,4.17427252]
[1740230084905,4.4302,2740.4,2739.9,0.7902]
[1740230085112,0.7811,2740.4,2739.9,0.7902]
[1740230085612,0.7811,2740.4,2739.9,4.43995]
[1740230086907,7.08421754,2740.3,2739.7,0.7902]
[1740230087432,7.08421754,2740.3,2739.8,0.09862457]
[1740230087619,7.08421754,2740.3,2739.7,0.7902]
[1740230087816,7.08421754,2740.3,2739.9,0.09860806]
[1740230088009,7.08421754,2740.3,2739.7,0.7902]
[1740230088209,7.08421754,2740.3,2740.0,0.09859155]
[1740230088410,7.08421754,2740.3,2739.7,4.44021]
[1740230088729,7.08421754,2740.3,2740.1,0.09857505]
[1740230088900,8.53564729,2740.3,2739.7,4.44021]
[1740230089100,8.53564729,2740.3,2740.2,0.09855854]
[1740230089300,8.53564729,2740.3,2739.7,4.44021]
[1740230089503,7.08421754,2740.3,2740.2,0.09855854]
[1740230089734,7.08421754,2740.3,2739.7,4.44021]
[1740230089918,7.08421754,2740.3,2740.2,0.09855854]
[1740230090104,7.08421754,2740.3,2739.7,4.44021]
[1740230090305,3.43494754,2740.3,2740.2,0.09855854]
[1740230090550,3.43494754,2740.3,2739.8,3.64981]
[1740230090749,3.43494754,2740.3,2740.2,0.09855854]
[1740230091233,3.43494754,2740.3,2739.8,3.64981]
[1740230091410,3.43494754,2740.3,2740.2,0.09855854]
[1740230091610,3.43494754,2740.3,2739.9,3.64965]
[1740230091810,3.43494754,2740.3,2740.2,0.09855854]
[1740230092022,3.43494754,2740.3,2739.9,3.64965]
[1740230092209,3.43494754,2740.3,2740.2,0.09855854]
[1740230092422,3.43494754,2740.3,2739.9,3.64965]
[1740230092620,3.43494754,2740.3,2740.2,0.09855854]
[1740230092934,3.43494754,2740.3,2739.9,3.64965]
[1740230093113,3.43494754,2740.3,2740.2,0.09855854]
[1740230093453,3.43494754,2740.3,2740.2,0.09864904]
[1740230093605,3.43494754,2740.3,2739.9,3.64965]
[1740230093936,3.43494754,2740.3,2740.2,0.09864904]
[1740230094133,3.43494754,2740.3,2739.9,3.64965]
[1740230094311,3.43494754,2740.3,2740.2,0.09864904]
[1740230094511,3.43494754,2740.3,2739.9,3.64965]
[1740230094827,3.43494754,2740.3,2739.8,7.29962]
[1740230095134,3.43494754,2740.3,2740.0,0.09868205]
[1740230095323,3.43494754,2740.3,2739.9,0.09869856]
[1740230095522,3.43494754,2740.3,2740.1,0.09866555]
[1740230095723,3.43494754,2740.3,2740.0,0.09868205]
[1740230096034,3.43494754,2740.3,2740.1,0.09866555]
[1740230096223,3.43494754,2740.3,2739.9,3.64976]
[1740230096423,3.43494754,2740.3,2740.2,0.09864904]
[1740230096733,3.43494754,2740.3,2739.9,3.64976]
[1740230097233,3.43494754,2740.3,2740.0,0.09868205]
[1740230097431,3.43494754,2740.3,2740.0,3.74828205]
[1740230097635,0.7811,2740.4,2740.0,3.74828205]
[1740230098846,3.43494754,2740.6,2740.3,3.64922]
[1740230099020,3.43494754,2740.6,2740.4,0.09861603]
[1740230099219,3.43494754,2740.6,2740.4,3.74765603]
[1740230099413,3.43494754,2740.6,2740.4,0.09861603]
[1740230099640,3.43494754,2740.6,2740.2,3.64925]
[1740230099839,6.43494754,2740.6,2740.5,0.09859953]
[1740230100155,8.35438629,2740.6,2740.1,4.45]
[1740230100359,3.0,2740.6,2740.5,0.09859953]
[1740230100818,3.0,2740.6,2740.2,3.64935]
[1740230101026,3.0,2740.6,2740.5,0.09859953]
[1740230101250,3.0,2740.6,2740.2,3.64935]
[1740230101449,3.0,2740.6,2740.5,0.09859953]
[1740230101751,4.61943875,2740.6,2740.1,4.44999]
[1740230101946,3.0,2740.6,2740.5,0.09859953]
[1740230102118,3.0,2740.6,2740.2,3.64933]
[1740230102318,3.0,2740.6,2740.5,0.09859953]
[1740230102519,3.0,2740.6,2740.2,3.64933]
[1740230102719,3.0,2740.6,2740.5,0.09859953]
[1740230102952,4.61943875,2740.6,2740.5,0.09859953]
[1740230103150,4.61943875,2740.6,2740.1,0.8006]
[1740230103332,4.61943875,2740.6,2740.5,0.09859953]
[1740230103533,4.61943875,2740.6,2740.1,0.8006]
[1740230103853,4.61943875,2740.6,2740.1,4.45009]
[1740230104056,4.61943875,2740.6,2740.2,0.09864904]
[1740230104670,4.61943875,2740.6,2740.2,3.74800904]
[1740230104866,3.0,2740.6,2740.2,3.74800904]
[1740230106601,1.665308,2740.4,2740.2,3.74800904]
[1740230109902,1.665308,2740.4,2740.3,3.64923]
[1740230110091,0.7908,2740.7,2740.5,3.64896]
[1740230110291,6.985308,2740.8,2740.6,0.09842214]
[1740230110599,1.665308,2740.7,2740.6,3.74723214]
[1740230112108,1.665308,2740.7,2740.6,0.09842214]
[1740230113008,0.7756,2740.9,2740.6,0.09842214]
[1740230113213,6.0956,2741.2,2740.6,0.55146235]
[1740230113533,1.665308,2740.9,2740.7,3.64867]
[1740230114112,1.665308,2740.9,2740.8,0.09755445]
[1740230114410,1.665308,2740.9,2740.6,4.10185021]
[1740230114578,1.665308,2740.9,2740.8,0.09755445]
[1740230114778,1.665308,2740.9,2740.7,0.09757094]
[1740230115005,1.665308,2740.9,2740.8,0.09755445]
[1740230115502,1.665308,2740.9,2740.5,4.43199]
[1740230115714,1.665308,2740.9,2740.6,0.09758744]
[1740230116698,1.665308,2740.7,2740.6,0.09758744]
[1740230117176,1.665308,2740.7,2740.6,3.74641744]
[1740230117581,1.665308,2740.9,2740.7,3.64861]
[1740230118238,1.665308,2740.9,2740.8,0.09755445]
[1740230118640,1.665308,2740.9,2740.7,3.64861]
[1740230119003,1.665308,2740.9,2740.8,0.09721259]
[1740230119406,1.665308,2740.9,2740.7,3.64861]
[1740230119710,1.665308,2740.9,2740.8,0.09721259]
[1740230119942,1.665308,2740.9,2740.7,3.64861]
[1740230120406,1.665308,2740.9,2740.8,0.09721259]
[1740230120920,1.665308,2740.9,2740.7,7.29723]
[1740230121121,1.665308,2740.9,2740.8,0.09721259]
[1740230121346,1.665308,2740.9,2740.7,3.64861]
[1740230121634,1.665308,2741.1,2740.9,3.64839]
[1740230121791,1.665308,2741.1,2740.8,0.09721259]
[1740230121993,3.7756,2741.2,2741.0,0.0971796]
[1740230122196,1.665308,2741.1,2741.0,0.0971796]
[1740230122437,1.665308,2741.1,2740.7,3.64861]
[1740230122593,3.7756,2741.2,2741.0,0.0971796]
[1740230122792,5.13450986,2741.2,2740.7,3.64861]
[1740230123033,1.665308,2740.9,2740.7,3.64861]
[1740230124939,1.665308,2740.9,2740.5,4.43196]
[1740230125422,1.665308,2740.7,2740.5,4.43196]
[1740230126701,3.64828,2741.1,2740.5,4.43196]
[1740230126906,1.665308,2740.7,2740.5,4.43196]
[1740230127325,1.665308,2740.7,2740.4,8.96909]
[1740230127548,1.665308,2740.5,2740.4,5.32]
[1740230129513,1.665308,2740.5,2740.1,4.47557]
[1740230132146,1.665308,2740.5,2740.2,0.0975931]
[1740230132498,1.665308,2740.5,2740.2,3.7468531]
[1740230132706,1.665308,2740.5,2740.2,4.62646293]
[1740230133114,1.665308,2740.5,2740.3,3.64922]
[1740230133314,1.665308,2740.5,2740.4,0.15519544]
[1740230133517,1.665308,2740.5,2740.2,4.47151031]
[1740230133714,1.665308,2740.5,2740.3,0.15521404]
[1740230133917,0.7504,2740.4,2740.2,3.64926]
[1740230134117,1.665308,2740.6,2740.3,0.15521404]
[1740230134316,1.665308,2740.6,2740.2,4.840286]
[1740230134516,1.665308,2740.6,2740.3,0.15521404]
[1740230134717,1.665308,2740.6,2740.2,4.840286]
[1740230134951,1.665308,2740.6,2740.3,0.15521404]
[1740230135426,1.665308,2740.6,2740.4,3.64906]
[1740230135643,1.665308,2740.6,2740.4,3.80425544]
[1740230137840,1.665308,2740.6,2740.4,0.15519544]
[1740230138240,1.665308,2740.6,2740.3,3.64916]
[1740230138434,1.665308,2740.6,2740.5,0.15517685]
[1740230138633,1.665308,2740.6,2740.4,0.15519544]
[1740230138830,1.665308,2740.6,2740.5,0.15517685]
[1740230139214,1.665308,2740.6,2740.4,3.64908]
[1740230139434,1.665308,2740.6,2740.5,0.15517685]
[1740230140437,1.665308,2740.6,2740.3,3.64915]
[1740230140745,3.64883,2740.6,2740.4,0.15519544]
[1740230140942,0.7504,2740.5,2740.0,3.6496]
[1740230141143,2.415708,2740.5,2740.1,0.15518085]
[1740230141454,6.064698,2740.5,2740.1,0.15518085]
[1740230141845,1.665308,2740.3,2740.1,0.15518085]
[1740230142018,1.665308,2740.3,2739.9,4.47586]
[1740230142217,1.665308,2740.3,2740.2,0.15520247]
[1740230142431,1.665308,2740.3,2739.9,4.47579]
[1740230142614,1.665308,2740.3,2740.2,0.15513211]
[1740230142813,1.665308,2740.3,2739.9,4.47579]
[1740230143018,1.665308,2740.3,2740.2,0.15513211]
[1740230143215,1.665308,2740.3,2739.9,4.47579]
[1740230143415,1.665308,2740.3,2740.2,0.15513211]
[1740230143918,1.665308,2740.3,2739.9,4.47579]
[1740230144271,1.665308,2740.3,2740.0,0.15516931]
[1740230144615,1.665308,2740.3,2740.0,3.80479931]
[1740230144815,1.665308,2740.3,2740.0,0.15516931]
[1740230149942,1.665308,2740.8,2740.0,0.15516931]
[1740230149943,6.133608,2740.1,2740.0,0.15516931]
[1740230150163,3.64977,2739.9,2739.4,9.77564]
[1740230150331,1.665308,2739.8,2739.5,0.15560426]
[1740230150765,1.665308,2739.6,2739.5,0.15560426]
[1740230150965,1.665308,2739.6,2739.2,4.45597]
[1740230151466,1.665308,2739.6,2739.3,0.15014722]
[1740230151878,1.665308,2739.6,2739.2,4.45597]
[1740230152035,1.665308,2739.6,2739.4,0.15012861]
[1740230152234,1.665308,2739.6,2739.3,0.15014722]
[1740230152465,1.665308,2739.6,2739.5,0.15011]
[1740230152667,1.665308,2739.6,2739.4,0.15012861]
[1740230152869,1.665308,2739.6,2739.5,0.15011]
[1740230153247,1.665308,2739.6,2739.1,0.0931664]
[1740230153248,3.6503,2739.5,2739.1,0.0931664]
[1740230153445,1.665308,2739.3,2739.1,0.0931664]
[1740230154182,2.484108,2739.3,2739.1,0.0931664]
[1740230155606,6.134718,2739.3,2739.1,0.0931664]
[1740230155892,2.484108,2739.3,2739.1,0.0931664]
[1740230156145,3.6507,2739.2,2739.1,0.0931664]
[1740230159989,4.416,2739.2,2739.1,0.0931664]
[1740230160158,4.966,2739.2,2739.1,0.0931664]
[1740230160360,13.286,2739.2,2739.1,0.0931664]
[1740230161506,9.0853,2739.2,2739.1,0.0931664]
[1740230161685,6.0853,2739.2,2739.1,0.24432652]
[1740230161992,5.32,2739.2,2739.1,0.24432652]
[1740230163321,10.70653461,2739.2,2739.1,0.24432652]
[1740230163527,10.70653461,2739.2,2739.1,0.0931664]
[1740230165006,14.25653461,2739.2,2739.1,0.0931664]
[1740230167296,6.1035,2739.2,2739.1,0.0931664]
[1740230167490,5.32,2739.2,2739.1,0.0931664]
[1740230167695,5.32,2739.2,2739.1,0.24623852]
[1740230167929,5.32,2739.2,2739.1,0.24624858]
[1740230170391,8.9707,2739.2,2739.1,0.24624858]
[1740230170944,10.65704261,2739.2,2739.1,0.24624858]
[1740230171120,5.33704261,2739.2,2739.1,0.24624858]
[1740230171843,1.68634261,2739.2,2739.1,0.24624858]
[1740230172003,3.65058,2739.3,2739.1,0.24624858]
[1740230172201,7.30125,2739.3,2739.1,0.0931664]
[1740230172440,7.30125,2739.3,2739.2,0.15306357]
[1740230172602,7.30125,2739.3,2739.1,0.0931664]
[1740230173005,3.6507,2739.2,2739.1,0.0931664]
[1740230173348,4.80504261,2739.2,2739.1,0.0931664]
[1740230173562,4.80504261,2739.2,2739.1,0.24608752]
[1740230174212,17.36718873,2739.2,2739.1,0.0931664]
[1740230174413,13.92914261,2739.2,2739.1,0.0931664]
[1740230175558,13.92914261,2739.2,2739.1,0.24593652]
[1740230175732,10.92914261,2739.2,2739.1,0.24593652]
[1740230175937,7.27844261,2739.2,2739.1,0.24593652]
[1740230176306,5.32,2739.2,2739.1,0.24593652]
[1740230179705,4.25324612,2739.7,2739.1,1.06133652]
[1740230179905,17.03124612,2740.0,2739.6,4.46544]
[1740230180105,10.89604612,2740.0,2739.6,4.46544]
[1740230180339,10.89604612,2740.0,2739.7,0.15265846]
[1740230180641,12.06717073,2740.0,2739.5,3.65017]
[1740230180841,10.89604612,2740.0,2739.8,0.15263986]
[1740230181005,10.89604612,2740.0,2739.6,3.65011]
[1740230181516,7.458,2740.0,2739.6,3.65011]
[1740230181843,7.458,2740.0,2739.7,0.15265846]
[1740230182507,7.458,2740.0,2739.8,3.64981]
[1740230182841,7.458,2740.0,2739.9,0.15262125]
[1740230183209,7.458,2740.0,2739.9,0.7795]
[1740230183434,7.458,2740.0,2739.9,0.93212125]
[1740230184046,7.458,2740.0,2739.9,0.7795]
[1740230184219,7.458,2740.0,2739.9,0.93212125]
[1740230186219,7.458,2740.0,2739.9,5.04007538]
[1740230186545,7.458,2740.0,2739.9,1.39031538]
[1740230186718,7.458,2740.0,2739.9,0.15262125]
[1740230186928,7.458,2740.0,2739.9,3.64976]
[1740230187221,7.458,2740.0,2739.9,3.80149575]
[1740230191459,7.458,2740.0,2739.9,0.15173575]
[1740230191758,3.43804612,2740.3,2739.9,4.07566304]
[1740230192059,3.43804612,2740.3,2739.9,5.04358366]
[1740230192844,3.43804612,2740.3,2740.1,3.64949]
[1740230193229,3.43804612,2740.3,2740.2,0.15167995]
[1740230193745,0.0168,2740.5,2740.3,3.6492]
[1740230193949,0.0168,2740.5,2740.4,4.4785]
[1740230194130,0.0168,2740.5,2740.4,5.12155762]
[1740230199234,0.0168,2740.5,2740.4,5.38555762]